fUSD/lending_fUSD_20251227
["ID","MTS","AMOUNT","RATE_DAILY","PERIOD"]
[399892055,1766823046843,-659.62,0.00030219,2]
[399892056,1766823046852,-1099.0,0.00030266,5]
[399892057,1766823046862,-200.0,0.00030438,2]
[399892058,1766823046872,-595.20886659,0.00030466,2]
[399892060,1766823046927,-217.9488539,0.0002,2]
[399892062,1766823046938,-912.0,0.0002972,2]
[399892063,1766823046948,-404.73001944,0.00030466,2]
[399892064,1766823046957,-6582.06,0.000305,7]
[399892065,1766823046967,-277.06,0.0003057,30]
[399892066,1766823046977,-10173.50622942,0.00030752,2]
[399892068,1766823046988,-4481.67,0.00030752,2]
[399892070,1766823047000,-637.41718911,0.00030752,2]
[399892072,1766823047011,-1796.97144954,0.00030752,2]
[399892075,1766823047023,-6354.56103142,0.00030752,2]
[399892077,1766823047033,-659.62,0.00030959,2]
[399892079,1766823047043,-500.0,0.00031434,14]
[399892081,1766823047053,-81.85597752,0.0003152,120]
[399892083,1766823047065,-20918.14402248,0.0003152,120]
[399892085,1766823047075,-150.34,0.00031699,2]
[399892087,1766823047085,-800.0,0.00031708,14]
[399892089,1766823047095,-600.0,0.00031708,14]
[399892091,1766823047104,-1099.0,0.00031779,5]
[399892093,1766823047113,-2000.0,0.000318,2]
[399892095,1766823047124,-150.0,0.00032015,2]
[399892097,1766823047133,-6537.0,0.00032015,2]
[399892099,1766823047143,-347.14482896,0.0003216,2]
[399892101,1766823047153,-402.76822901,0.00032352,2]
[399892103,1766823047161,-150.0,0.00032466,2]
[399892105,1766823047171,-150.0,0.00032466,2]
[399892107,1766823047180,-468.09866139,0.00032537,4]
[399892109,1766823047189,-999.938886,0.00032553,2]
[399892112,1766823047198,-23444.12589949,0.0003286,2]
[399892115,1766823047208,-500.0,0.00032876,2]
[399892117,1766823047218,-150.103763,0.00032876,9]
[399892119,1766823047228,-237.671468,0.00032876,9]
[399892121,1766823047238,-1022.85724114,0.00032876,9]
[399892123,1766823047248,-576.18770858,0.00032876,9]
[399892125,1766823047262,-500.0,0.00032876,9]
[399892127,1766823047272,-500.0,0.00032876,9]
[399892128,1766823047282,-500.0,0.00032876,9]
[399892129,1766823047296,-500.0,0.00032876,9]
[399892130,1766823047305,-500.0,0.00032876,9]
[399892131,1766823047315,-500.0,0.00032876,9]
[399892132,1766823047324,-191.86936835,0.00032876,9]
[399892133,1766823047334,-669.41,0.00032876,9]
[399892134,1766823047343,-500.0,0.00032876,9]
[399892135,1766823047353,-500.0,0.00032876,9]
[399892136,1766823047363,-500.0,0.00032876,9]
[399892137,1766823047373,-500.0,0.00032876,9]
[399892138,1766823047382,-500.0,0.00032876,9]
[399892139,1766823047392,-500.0,0.00032876,9]
[399892140,1766823047401,-500.0,0.00032876,9]
[399892141,1766823047411,-500.0,0.00032876,9]
[399892142,1766823047421,-226.999825,0.00032876,9]
[399892143,1766823047431,-500.0,0.00032876,9]
[399892144,1766823047441,-500.0,0.00032876,9]
[399892145,1766823047451,-500.0,0.00032876,9]
[399892146,1766823047461,-500.0,0.00032876,9]
[399892147,1766823047471,-500.0,0.00032876,9]
[399892148,1766823047481,-500.0,0.00032876,9]
[399892149,1766823047492,-323.9119031,0.00032876,9]
[399892150,1766823047501,-500.0,0.00032876,9]
[399892151,1766823047511,-500.0,0.00032876,9]
[399892152,1766823047520,-500.0,0.00032876,9]
[399892153,1766823047530,-500.0,0.00032876,9]
[399892154,1766823047540,-500.0,0.00032876,9]
[399892155,1766823047550,-545.93377685,0.00032876,9]
[399892156,1766823047560,-500.0,0.00032876,9]
[399892157,1766823047570,-411.27682459,0.00032876,9]
[399892158,1766823047580,-500.0,0.00032876,9]
[399892159,1766823047590,-500.0,0.00032876,9]
[399892160,1766823047601,-166.3490371,0.00032876,9]
[399892161,1766823047611,-487.4912636,0.00032876,9]
[399892162,1766823047626,-500.0,0.00032876,9]
[399892163,1766823047635,-500.0,0.00032876,9]
[399892164,1766823047646,-500.0,0.00032876,9]
[399892165,1766823047655,-183.15805294,0.00032876,9]
[399892166,1766823047665,-500.0,0.00032876,9]
[399892167,1766823047676,-500.0,0.00032876,9]
[399892168,1766823047685,-175.06730497,0.00032876,9]
[399892169,1766823047695,-500.0,0.00032876,9]
[399892170,1766823047705,-419.45446834,0.00032876,9]
[399892171,1766823047716,-157.93448465,0.00032876,9]
[399892172,1766823047726,-152.97736228,0.00032876,9]
[399892173,1766823047736,-500.0,0.00032876,9]
[399892174,1766823047746,-792.95,0.00032876,9]
[399892175,1766823047756,-262.03337487,0.00032876,9]
[399892176,1766823047766,-484.48152139,0.00032876,9]
[399892177,1766823047776,-500.0,0.00032876,9]
[399892178,1766823047786,-500.0,0.00032876,9]
[399892179,1766823047797,-559.21023071,0.00032876,9]
[399892180,1766823047807,-500.0,0.00032876,9]
[399892181,1766823047816,-500.0,0.00032876,9]
[399892182,1766823047833,-500.0,0.00032876,9]
[399892183,1766823047854,-486.02546522,0.00032876,9]
[399892184,1766823047875,-500.0,0.00032876,9]
[399892185,1766823047897,-500.0,0.00032876,9]
[399892186,1766823047912,-500.0,0.00032876,9]
[399892187,1766823047922,-500.0,0.00032876,9]
[399892188,1766823047932,-500.0,0.00032876,9]
[399892189,1766823047943,-498.73997389,0.00032876,9]
[399892190,1766823047954,-500.0,0.00032876,9]
[399892191,1766823047964,-500.0,0.00032876,9]
[399892192,1766823047976,-500.0,0.00032876,9]
[399892193,1766823047988,-500.0,0.00032876,9]
[399892194,1766823047999,-512.89776195,0.00032876,9]
[399892195,1766823048011,-500.0,0.00032876,9]
[399892196,1766823048024,-500.0,0.00032876,9]
[399892197,1766823048041,-500.0,0.00032876,9]
[399892198,1766823048051,-500.0,0.00032876,9]
[399892199,1766823048062,-169.22226577,0.00032876,9]
[399892200,1766823048075,-199.34139195,0.00032876,9]
[399892201,1766823048084,-184.62080079,0.00032876,9]
[399892202,1766823048094,-560.63250278,0.00032876,9]
[399892203,1766823048104,-500.0,0.00032876,9]
[399892204,1766823048114,-500.0,0.00032876,9]
[399892205,1766823048124,-392.31691307,0.00032876,9]
[399892206,1766823048134,-500.0,0.00032876,9]
[399892207,1766823048143,-500.0,0.00032876,9]
[399892208,1766823048153,-293.44702347,0.00032876,9]
[399892209,1766823048163,-312.64939794,0.00032876,9]
[399892210,1766823048173,-500.0,0.00032876,9]
[399892211,1766823048183,-323.69388497,0.00032876,9]
[399892212,1766823048192,-500.0,0.00032876,9]
[399892213,1766823048203,-472.40965836,0.00032876,9]
[399892214,1766823048213,-205.11910221,0.00032876,9]
[399892215,1766823048223,-500.0,0.00032876,9]
[399892216,1766823048237,-500.0,0.00032876,9]
[399892217,1766823048249,-500.0,0.00032876,9]
[399892218,1766823048261,-212.30864482,0.00032876,9]
[399892219,1766823048272,-500.0,0.00032876,9]
[399892220,1766823048283,-535.75203565,0.00032876,9]
[399892221,1766823048296,-500.0,0.00032876,9]
[399892222,1766823048306,-500.0,0.00032876,9]
[399892223,1766823048317,-500.0,0.00032876,9]
[399892224,1766823048328,-167.19589903,0.00032876,9]
[399892225,1766823048339,-500.0,0.00032876,9]
[399892226,1766823048349,-269.40815544,0.00032876,9]
[399892227,1766823048359,-282.15235731,0.00032876,9]
[399892228,1766823048372,-500.0,0.00032876,9]
[399892229,1766823048382,-439.3797,0.00032876,9]
[399892230,1766823048391,-500.0,0.00032876,9]
[399892231,1766823048401,-500.0,0.00032876,9]
[399892232,1766823048411,-500.0,0.00032876,9]
[399892233,1766823048422,-508.5349793,0.00032876,9]
[399892234,1766823048436,-500.0,0.00032876,9]
[399892235,1766823048445,-500.0,0.00032876,9]
[399892236,1766823048456,-213.80463455,0.00032876,9]
[399892237,1766823048468,-503.1147414,0.00032876,9]
[399892238,1766823048478,-563.58579968,0.00032876,9]
[399892239,1766823048488,-500.0,0.00032876,9]
[399892240,1766823048499,-500.0,0.00032876,9]
[399892241,1766823048509,-208.77253921,0.00032876,9]
[399892242,1766823048519,-169.57402918,0.00032876,9]
[399892243,1766823048528,-230.33323189,0.00032876,9]
[399892244,1766823048538,-500.0,0.00032876,9]
[399892245,1766823048548,-258.3087379,0.00032876,9]
[399892246,1766823048558,-210.67078086,0.00032876,9]
[399892247,1766823048567,-320.56979521,0.00032876,9]
[399892248,1766823048577,-500.0,0.00032876,9]
[399892249,1766823048588,-500.0,0.00032876,9]
[399892250,1766823048597,-500.0,0.00032876,9]
[399892251,1766823048608,-392.88357337,0.00032876,9]
[399892252,1766823048618,-500.0,0.00032876,9]
[399892253,1766823048627,-500.0,0.00032876,9]
[399892254,1766823048638,-380.2306699,0.00032876,9]
[399892255,1766823048648,-193.28518882,0.00032876,9]
[399892256,1766823048659,-562.56510623,0.00032876,9]
[399892257,1766823048669,-166.57044118,0.00032876,9]
[399892258,1766823048679,-601.51,0.00032876,9]
[399892259,1766823048689,-500.0,0.00032876,9]
[399892260,1766823048699,-500.0,0.00032876,9]
[399892261,1766823048709,-308.53413576,0.00032876,9]
[399892262,1766823048720,-172.5926654,0.00032876,9]
[399892263,1766823048730,-577.95753228,0.00032876,9]
[399892264,1766823048740,-500.0,0.00032876,9]
[399892265,1766823048750,-152.55735416,0.00032876,9]
[399892266,1766823048759,-169.81558386,0.00032876,9]
[399892267,1766823048769,-174.47353165,0.00032876,9]
[399892268,1766823048779,-182.47898019,0.00032876,9]
[399892269,1766823048789,-500.0,0.00032876,9]
[399892270,1766823048799,-500.0,0.00032876,9]
[399892271,1766823048809,-246.61453171,0.00032876,9]
[399892272,1766823048832,-153.31555048,0.00032876,9]
[399892273,1766823048843,-633.93111691,0.00032876,9]
[399892274,1766823048854,-201.56861022,0.00032876,9]
[399892275,1766823048864,-228.13993614,0.00032876,9]
[399892276,1766823048874,-218.51013907,0.00032876,9]
[399892277,1766823048884,-500.0,0.00032876,9]
[399892278,1766823048894,-198.69541854,0.00032876,9]
[399892279,1766823048904,-293.56135104,0.00032876,9]
[399892280,1766823048914,-294.34446005,0.00032876,9]
[399892281,1766823048924,-235.86136421,0.00032876,9]
[399892282,1766823048934,-177.82289673,0.00032876,9]
[399892283,1766823048947,-416.36255222,0.00032876,9]
[399892284,1766823048957,-500.0,0.00032876,9]
[399892285,1766823048973,-500.0,0.00032876,9]
[399892286,1766823048995,-298.33359956,0.00032876,9]
[399892287,1766823049012,-500.0,0.00032876,9]
[399892288,1766823049023,-447.2805464,0.00032876,9]
[399892289,1766823049034,-500.0,0.00032876,9]
[399892290,1766823049043,-172.83885631,0.00032876,9]
[399892291,1766823049054,-178.7071647,0.00032876,9]
[399892292,1766823049065,-282.47487199,0.00032876,9]
[399892293,1766823049075,-500.0,0.00032876,9]
[399892294,1766823049085,-278.21637172,0.00032876,9]
[399892295,1766823049096,-204.54435911,0.00032876,9]
[399892296,1766823049105,-500.0,0.00032876,9]
[399892297,1766823049115,-500.0,0.00032876,9]
[399892298,1766823049124,-406.57005087,0.00032876,9]
[399892299,1766823049134,-153.74145699,0.00032876,9]
[399892300,1766823049144,-174.38651976,0.00032876,9]
[399892301,1766823049153,-500.0,0.00032876,9]
[399892302,1766823049163,-308.34492414,0.00032876,9]
[399892303,1766823049173,-369.23167652,0.00032876,9]
[399892304,1766823049183,-500.0,0.00032876,9]
[399892305,1766823049192,-177.98628835,0.00032876,9]
[399892306,1766823049202,-286.91665666,0.00032876,9]
[399892307,1766823049212,-210.04776672,0.00032876,9]
[399892308,1766823049222,-154.29419129,0.00032876,9]
[399892309,1766823049232,-500.0,0.00032876,9]
[399892310,1766823049243,-204.52080237,0.00032876,9]
[399892311,1766823049253,-203.94632005,0.00032876,9]
[399892312,1766823049263,-286.59655978,0.00032876,9]
[399892313,1766823049273,-290.92872784,0.00032876,9]
[399892314,1766823049283,-234.42638174,0.00032876,9]
[399892315,1766823049296,-198.63174305,0.00032876,9]
[399892316,1766823049306,-500.0,0.00032876,9]
[399892317,1766823049316,-500.0,0.00032876,9]
[399892318,1766823049326,-625.77816679,0.00032876,9]
[399892319,1766823049336,-155.99841768,0.00032876,9]
[399892320,1766823049346,-434.93917424,0.00032876,9]
[399892321,1766823049355,-283.6571966,0.00032876,9]
[399892322,1766823049365,-229.99288317,0.00032876,9]
[399892323,1766823049375,-500.0,0.00032876,9]
[399892324,1766823049385,-500.0,0.00032876,9]
[399892325,1766823049395,-289.91494418,0.00032876,9]
[399892326,1766823049404,-171.44579051,0.00032876,9]
[399892327,1766823049415,-188.82162401,0.00032876,9]
[399892328,1766823049425,-165.4666892,0.00032876,9]
[399892329,1766823049436,-172.51692138,0.00032876,9]
[399892330,1766823049446,-229.32136896,0.00032876,9]
[399892331,1766823049456,-500.0,0.00032876,9]
[399892332,1766823049466,-380.98895136,0.00032876,9]
[399892333,1766823049476,-181.02607425,0.00032876,9]
[399892334,1766823049486,-209.63719489,0.00032876,9]
[399892335,1766823049496,-210.29856708,0.00032876,9]
[399892336,1766823049507,-170.67795958,0.00032876,9]
[399892337,1766823049518,-314.44563028,0.00032876,9]
[399892338,1766823049528,-500.0,0.00032876,9]
[399892339,1766823049537,-356.90374991,0.00032876,9]
[399892340,1766823049547,-500.0,0.00032876,9]
[399892341,1766823049558,-415.54372989,0.00032876,9]
[399892342,1766823049567,-596.02051434,0.00032876,9]
[399892343,1766823049577,-500.0,0.00032876,9]
[399892344,1766823049588,-197.54877762,0.00032876,9]
[399892345,1766823049598,-397.91450956,0.00032876,9]
[399892346,1766823049608,-233.38145964,0.00032876,9]
[399892347,1766823049618,-273.73295694,0.00032876,9]
[399892348,1766823049627,-500.0,0.00032876,9]
[399892349,1766823049638,-500.0,0.00032876,9]
[399892350,1766823049648,-500.0,0.00032876,9]
[399892351,1766823049657,-305.6497262,0.00032876,9]
[399892352,1766823049667,-184.28786715,0.00032876,9]
[399892353,1766823049678,-588.53575348,0.00032876,9]
[399892354,1766823049687,-410.52695149,0.00032876,9]
[399892355,1766823049698,-215.40990897,0.00032876,9]
[399892356,1766823049707,-500.0,0.00032876,9]
[399892357,1766823049718,-166.21358469,0.00032876,9]
[399892358,1766823049728,-258.53176086,0.00032876,9]
[399892359,1766823049738,-500.0,0.00032876,9]
[399892360,1766823049748,-234.98061642,0.00032876,9]
[399892361,1766823049759,-278.57104998,0.00032876,9]
[399892362,1766823049769,-600.0,0.00032876,9]
[399892363,1766823049780,-500.0,0.00032876,9]
[399892364,1766823049790,-255.00261807,0.00032876,9]
[399892365,1766823049799,-500.0,0.00032876,9]
[399892366,1766823049809,-437.07422141,0.00032876,9]
[399892367,1766823049819,-279.78704402,0.00032876,9]
[399892368,1766823049830,-450.64371089,0.00032876,9]
[399892369,1766823049840,-500.0,0.00032876,9]
[399892370,1766823049850,-563.49943402,0.00032876,9]
[399892371,1766823049859,-500.0,0.00032876,9]
[399892372,1766823049869,-170.77222027,0.00032876,9]
[399892373,1766823049880,-500.0,0.00032876,9]
[399892374,1766823049890,-500.0,0.00032876,9]
[399892375,1766823049900,-216.32263853,0.00032876,9]
[399892376,1766823049910,-500.0,0.00032877,2]
[399892377,1766823049920,-500.0,0.00032877,2]
[399892378,1766823049930,-500.0,0.00032877,2]
[399892379,1766823049939,-500.0,0.00032877,2]
[399892380,1766823049949,-500.0,0.00032877,2]
[399892381,1766823049959,-329.62724021,0.00032877,2]
[399892382,1766823049970,-500.0,0.00032877,7]
[399892383,1766823049980,-500.0,0.00032877,7]
[399892384,1766823049990,-500.0,0.00032877,7]
[399892385,1766823050001,-273.27008668,0.00032877,7]
[399892386,1766823050012,-407.64016131,0.00032999,2]
[399892387,1766823050023,-1975.25653152,0.00033,2]
[399892388,1766823050034,-1906.26153289,0.00033,2]
[399892389,1766823050045,-152.77020612,0.00033,2]
[399892390,1766823050055,-5597.21200472,0.00033,2]
[399892391,1766823050077,-5570.45453968,0.00033,2]
[399892392,1766823050113,-500.0,0.00016148,2]
[399892393,1766823050124,-500.0,0.00016148,2]
[399892394,1766823050135,-500.0,0.00016438,2]
[399892395,1766823050146,-500.0,0.00033,2]
[399892411,1766823280716,153.0,0.000301,120]
[399892412,1766823282024,153.0,0.000301,120]
[399892413,1766823287219,153.0,0.000301,120]
[399892417,1766823376575,153.0,0.000301,120]
[399892418,1766823379386,153.0,0.000301,120]
[399892419,1766823386039,1002.91,7.667e-05,2]
[399892420,1766823386256,1002.91,8.071e-05,2]
[399892421,1766823386503,1002.91,8.474e-05,2]
[399892422,1766823386703,1002.91,8.878e-05,2]
[399892423,1766823387093,1002.91,9.281e-05,2]
[399892424,1766823387324,1002.91,9.685e-05,2]
[399892425,1766823387516,1002.91,0.00010088,2]
[399892426,1766823387726,1002.91,0.00010492,2]
[399892427,1766823387952,1002.91,0.00010895,2]
[399892428,1766823388185,973.82,0.00011299,2]
[399892429,1766823388212,29.09,0.00011299,2]
[399892430,1766823388400,1002.91,0.00011702,2]
[399892431,1766823390139,-778.4889422,0.00012106,2]
[399892433,1766823413329,-224.4210578,0.00012106,2]
[399892434,1766823413355,-275.5789422,0.00012509,2]
[399892435,1766823414922,-244.0,0.00012509,2]
[399892436,1766823416927,-205.75,0.00012509,2]
[399892438,1766823548326,-277.5810578,0.00012509,2]
[399892439,1766823548350,-39.01352423,0.0001261,2]
[399892440,1766823550939,-198.46682916,0.0001261,2]
[399892441,1766823563227,-62.51964661,0.0001261,2]
[399892442,1766823563251,-225.11659442,0.00012711,2]
[399892443,1766823609969,-254.0,0.00012711,2]
[399892444,1766823609996,-53.84432286,0.00012711,2]
[399892445,1766823694734,183.08,0.00010819,2]
[399892446,1766823696030,-183.08,0.00012623,2]
[399892447,1766823696054,-21.03908272,0.00012711,2]
[399892448,1766823696079,-160.34407081,0.00012913,2]
[399892449,1766823704531,-174.64776622,0.00012913,2]
[399892450,1766823711386,-373.37230186,0.00012913,2]
[399892451,1766823713349,-266.95326472,0.00012913,2]
[399892452,1766823812969,-494.74064293,0.00012611,2]
[399892453,1766823833300,-5.25935707,0.00012611,2]
[399892454,1766823833330,-27.59259639,0.00012913,2]
[399892455,1766823833354,-176.88943954,0.00013115,2]
[399892462,1766823908679,-73.11056046,0.00013115,2]
[399892463,1766823908712,-146.34128588,0.00013216,2]
[399892466,1766823968275,-153.65871412,0.00013216,2]
[399892467,1766823968302,-140.79441769,0.00013316,2]
[399892468,1766823970424,-437.23700111,0.00013316,2]
[399892469,1766823971902,-167.32342631,0.00013316,2]
[399892470,1766823975194,-207.4,0.00013316,2]
[399892471,1766824024868,619.47441123,0.000226,120]
[399892481,1766824087183,-50.15515489,0.00013316,2]
[399892482,1766824087207,-183.25,0.00013539,2]
[399892484,1766824112023,267.54329602,0.000107,2]
[399892485,1766824123597,1008.43013229,0.0003013,120]
[399892486,1766824133417,-162.96933339,0.00013594,2]
[399892487,1766824135841,-278.53637258,0.00013594,2]
[399892489,1766824163320,-58.49429403,0.00013594,2]
[399892490,1766824163352,-133.41502429,0.00013655,2]
[399892492,1766824166083,-279.82044178,0.00013655,2]
[399892493,1766824168828,-177.44729373,0.00013655,2]
[399892494,1766824173676,-224.22421377,0.00013655,2]
[399892495,1766824175769,-185.09302643,0.00013655,2]
[399892496,1766824175794,-238.9201297,0.00013659,2]
[399892498,1766824223314,-300.0,0.0001372,2]
[399892499,1766824224780,-287.11792948,0.0001372,2]
[399892518,1766824232317,-415.79207052,0.0001372,2]
[399892519,1766824232327,-516.99057592,0.0001396,2]
[399892520,1766824232339,-701.92942408,0.0001396,2]
[399892521,1766824232350,-300.0,0.0001396,2]
[399892522,1766824232360,-1200.0,0.0001396,2]
[399892523,1766824232370,-300.0,0.0001396,2]
[399892524,1766824232380,-150.0,0.00013961,2]
[399892525,1766824232389,-377.23848287,0.00013962,2]
[399892526,1766824232402,-122.76151713,0.00013962,2]
[399892527,1766824232412,-150.0,0.00013962,2]
[399892528,1766824232422,-500.0,0.00013962,2]
[399892529,1766824232433,-150.0,0.00013962,2]
[399892530,1766824232444,-500.0,0.00013962,2]
[399892531,1766824232453,-500.0,0.00013962,2]
[399892532,1766824232463,-500.0,0.00013962,2]
[399892533,1766824232473,-500.0,0.00013962,2]
[399892534,1766824232484,-150.0,0.00013962,2]
[399892536,1766824232494,-500.0,0.00013962,2]
[399892538,1766824232505,-150.0,0.00013962,2]
[399892540,1766824232515,-150.0,0.00013962,2]
[399892542,1766824232524,-151.0,0.00013969,2]
[399892544,1766824232534,-151.0,0.00013969,2]
[399892546,1766824232543,-180.1943674,0.00013972,2]
[399892547,1766824232555,-16310.495,0.00013972,2]
[399892549,1766824232567,-887.52956503,0.00013972,2]
[399892556,1766824232608,-479.58345571,0.00013971,2]
[399892558,1766824232620,-20.41654429,0.00013971,2]
[399892560,1766824232629,-414.16069233,0.00013972,2]
[399892562,1766824232641,-349.17285286,0.00013972,2]
[399892563,1766824232652,-1331.28839075,0.00013972,2]
[399892564,1766824232708,-436.60011272,0.00013971,2]
[399892565,1766824232747,-63.39988728,0.00013971,2]
[399892566,1766824232758,-500.0,0.00013971,2]
[399892567,1766824232768,-303.86214224,0.00013972,2]
[399892568,1766824232780,-534540.23304416,0.00013972,2]
[399892569,1766824232792,-74858.08631507,0.00013972,2]
[399892570,1766824232831,-500.0,0.00013971,2]
[399892571,1766824232841,-43400.63294709,0.00013972,2]
[399892572,1766824232853,-453.95773948,0.00013972,2]
[399892582,1766824238355,-500.0,0.00013971,2]
[399892583,1766824238365,-500.0,0.00013971,2]
[399892584,1766824238375,-320.48682641,0.00013971,2]
[399892585,1766824238387,-310.08162556,0.00013971,2]
[399892586,1766824238397,-500.0,0.00013971,2]
[399892587,1766824238407,-500.0,0.00013971,2]
[399892588,1766824238417,-24.91837865,0.00013971,2]
[399892589,1766824238454,-475.08162135,0.00013971,2]
[399892590,1766824238464,-500.0,0.00013971,2]
[399892591,1766824238474,-500.0,0.00013971,2]
[399892592,1766824238484,-500.0,0.00013971,2]
[399892593,1766824238494,-500.0,0.00013971,2]
[399892594,1766824238504,-500.0,0.00013971,2]
[399892595,1766824238514,-500.0,0.00013971,2]
[399892596,1766824238536,-500.0,0.00013971,2]
[399892597,1766824238551,-500.0,0.00013971,2]
[399892599,1766824238563,-500.0,0.00013971,2]
[399892601,1766824238574,-500.0,0.00013971,2]
[399892603,1766824238584,-500.0,0.00013971,2]
[399892605,1766824238594,-500.0,0.00013971,2]
[399892607,1766824238605,-500.0,0.00013971,2]
[399892608,1766824238614,-500.0,0.00013971,2]
[399892610,1766824238625,-500.0,0.00013971,2]
[399892611,1766824238635,-500.0,0.00013971,2]
[399892613,1766824238647,-500.0,0.00013971,2]
[399892614,1766824238657,-20972.54836241,0.00013972,2]
[399892616,1766824238677,-543.57890316,0.00013972,2]
[399892618,1766824238689,-349.056,0.00013972,2]
[399892619,1766824240382,-570.39513047,0.00013972,2]
[399892620,1766824240395,-305.55524937,0.00013972,2]
[399892621,1766824240407,-3014.407462,0.00013972,2]
[399892622,1766824240419,-534.0,0.00013972,2]
[399892623,1766824240432,-812.03708328,0.00013972,2]
[399892624,1766824240458,-21041.45799257,0.00013972,2]
[399892625,1766824240470,-4348.12435315,0.00013972,2]
[399892626,1766824240481,-2280.9972858,0.00013972,2]
[399892627,1766824240494,-1956.161805,0.00013972,2]
[399892628,1766824240579,-270242.06731638,0.00013972,2]
[399892629,1766824240589,-500.0,0.00013989,2]
[399892630,1766824240599,-500.0,0.00013989,2]
[399892631,1766824240609,-150.0,0.00013989,2]
[399892632,1766824240619,-500.0,0.00013989,2]
[399892633,1766824240629,-500.0,0.00013989,2]
[399892634,1766824240640,-500.0,0.00013989,2]
[399892635,1766824240649,-500.0,0.00013989,2]
[399892636,1766824240659,-500.0,0.00013989,2]
[399892637,1766824240669,-267.77127482,0.00013989,2]
[399892638,1766824240680,-93292.07213454,0.0001399,2]
[399892639,1766824240690,-500.0,0.00014017,2]
[399892640,1766824240700,-500.0,0.00014017,2]
[399892641,1766824240710,-255.7741324,0.00014017,2]
[399892642,1766824240720,-500.0,0.00014017,2]
[399892643,1766824240730,-500.0,0.00014017,2]
[399892644,1766824240741,-500.0,0.00014017,2]
[399892645,1766824240751,-500.0,0.00014017,2]
[399892646,1766824240762,-500.0,0.00014017,2]
[399892647,1766824240771,-500.0,0.00014044,2]
[399892648,1766824240782,-500.0,0.00014044,2]
[399892649,1766824240791,-500.0,0.00014044,2]
[399892650,1766824240801,-500.0,0.00014044,2]
[399892651,1766824240812,-500.0,0.00014044,2]
[399892652,1766824240822,-500.0,0.00014044,2]
[399892653,1766824240832,-500.0,0.00014044,2]
[399892654,1766824240842,-265.16707175,0.00014072,2]
[399892655,1766824240852,-500.0,0.00014072,2]
[399892656,1766824240862,-500.0,0.00014072,2]
[399892657,1766824240872,-500.0,0.00014072,2]
[399892658,1766824240882,-158.19288149,0.00014072,2]
[399892659,1766824240892,-500.0,0.00014072,2]
[399892660,1766824240902,-500.0,0.00014072,2]
[399892661,1766824240913,-1152.9363,0.00014093,2]
[399892662,1766824240924,-500.0,0.00014099,2]
[399892663,1766824240933,-500.0,0.00014099,2]
[399892664,1766824240944,-500.0,0.00014099,2]
[399892665,1766824240953,-500.0,0.00014099,2]
[399892666,1766824240963,-500.0,0.00014099,2]
[399892667,1766824240974,-19888.6553071,0.00014104,2]
[399892668,1766824240984,-13451.93324052,0.00014104,2]
[399892669,1766824240993,-391.67037527,0.00014104,2]
[399892670,1766824241004,-1002.91,0.00014124,2]
[399892671,1766824241014,-500.0,0.00014126,2]
[399892672,1766824241024,-453.68455195,0.00014126,2]
[399892673,1766824241034,-500.0,0.00014126,2]
[399892674,1766824241045,-500.0,0.00014126,2]
[399892675,1766824241055,-500.0,0.00014154,2]
[399892676,1766824241066,-500.0,0.00014154,2]
[399892677,1766824241076,-500.0,0.00014154,2]
[399892678,1766824241086,-551.38785405,0.00014173,2]
[399892679,1766824241096,-500.0,0.00014181,2]
[399892680,1766824241107,-500.0,0.00014181,2]
[399892681,1766824241118,-500.0,0.00014181,2]